bitfinex-derivatives/quotes_SOLF0:USTF0_20250705
["timestamp","ask_amount","ask_price","bid_price","bid_amount"]
[1751753105606,3.68439217,147.26,147.22,6.7906]
[1751753105799,15.58860575,147.25,147.22,6.7906]
[1751753106000,8.4351184,147.24,147.22,6.7906]
[1751753106207,3.68439217,147.26,147.22,6.7906]
[1751753106407,15.59632803,147.25,147.22,6.7906]
[1751753106602,19.88489344,147.24,147.22,6.7906]
[1751753106808,6.79,147.24,147.22,6.7906]
[1751753110708,6.7896,147.25,147.23,6.7903]
[1751753110900,13.09805381,147.24,147.23,6.7903]
[1751753111308,8.44514809,147.24,147.23,6.7903]
[1751753115405,6.7883,147.28,147.25,6.7891]
[1751753115612,13.09211476,147.27,147.25,6.7891]
[1751753115813,8.43840725,147.26,147.25,6.7891]
[1751753116713,6.7878,147.29,147.26,6.7888]
[1751753116911,15.61569038,147.28,147.26,6.7888]
[1751753117209,13.1137975,147.27,147.26,6.7888]
[1751753118814,9.52351481,147.31,147.27,6.7882]
[1751753119019,20.39286895,147.3,147.27,6.7882]
[1751753119311,15.61413933,147.29,147.27,6.7882]
[1751753119511,13.1120642,147.28,147.27,6.7882]
[1751753119911,13.1106508,147.28,147.27,6.7882]
[1751753120206,8.43477427,147.28,147.27,6.7882]
[1751753120412,13.11127702,147.28,147.27,6.7882]
[1751753121710,4.67650275,147.28,147.27,6.7882]
[1751753124708,6.7877,147.29,147.27,6.7882]
[1751753124916,4.71433753,147.28,147.27,6.7882]
[1751753125612,15.70750299,147.28,147.24,46.46]
[1751753125917,3.686968,147.3,147.24,46.46]
[1751753126119,22.49589482,147.29,147.26,6.789]
[1751753126314,4.7146229,147.28,147.26,6.789]
[1751753126607,6.788,147.29,147.26,6.789]
[1751753126810,4.71470793,147.28,147.26,6.789]
[1751753127017,6.788,147.29,147.26,6.789]
[1751753127315,4.71470793,147.28,147.26,6.789]
[1751753127515,6.788,147.29,147.26,6.789]
[1751753127717,4.71442404,147.28,147.26,6.789]
[1751753127918,6.788,147.29,147.26,6.789]
[1751753128218,4.71442213,147.28,147.26,6.789]
[1751753128418,6.788,147.29,147.26,6.789]
[1751753128620,4.71559141,147.28,147.26,6.789]
[1751753128818,6.788,147.29,147.26,6.789]
[1751753129020,4.71559141,147.28,147.26,6.789]
[1751753129320,6.788,147.29,147.26,6.789]
[1751753129519,4.7164874,147.28,147.26,6.789]
[1751753129729,6.788,147.29,147.26,6.789]
[1751753129917,4.7164874,147.28,147.26,6.789]
[1751753130117,6.788,147.29,147.26,6.789]
[1751753130420,4.7163199,147.28,147.26,6.789]
[1751753130620,6.788,147.29,147.26,6.789]
[1751753130820,4.71639595,147.28,147.26,6.789]
[1751753131020,6.788,147.29,147.26,6.789]
[1751753131318,4.71639595,147.28,147.26,6.789]
[1751753131509,6.788,147.29,147.26,6.789]
[1751753131709,4.71630195,147.28,147.26,6.789]
[1751753131913,9.14725821,147.29,147.26,6.789]
[1751753132112,4.71601896,147.28,147.26,6.789]
[1751753132411,9.14725821,147.29,147.26,6.789]
[1751753132611,4.71571364,147.28,147.26,6.789]
[1751753132921,9.14725821,147.29,147.26,6.789]
[1751753133117,4.71571554,147.28,147.27,9.14775821]
[1751753133718,9.14615821,147.31,147.28,6.7877]
[1751753133922,20.51998033,147.3,147.28,6.7877]
[1751753134118,7.22952534,147.29,147.28,6.7877]
[1751753134917,9.58878355,147.29,147.24,46.46]
[1751753135123,2.35925821,147.25,147.24,46.46]
[1751753135323,10.82895833,147.25,147.24,46.46]
[1751753136524,17.61845833,147.25,147.24,46.46]
[1751753137226,10.82895833,147.25,147.24,46.46]
[1751753137720,8.46970012,147.25,147.24,46.46]
[1751753138121,8.46970012,147.25,147.24,53.2499]
[1751753141924,6.7892,147.26,147.24,53.2499]
[1751753142123,7.16759936,147.25,147.24,53.2499]
[1751753146126,18.10679168,147.25,147.24,53.2499]
[1751753148124,18.10679168,147.25,147.24,46.46]
[1751753149534,18.10679168,147.25,147.23,6.7902]
[1751753149735,4.66369743,147.24,147.23,6.7902]
[1751753153540,2.50451434,147.25,147.24,6.7899]
[1751753153738,7.18111202,147.25,147.24,6.7899]
[1751753155940,2.50451434,147.25,147.24,6.7899]
[1751753156142,13.20790067,147.32,147.27,6.7882]
[1751753156344,6.7873,147.3,147.27,6.7882]
[1751753156545,17.89560785,147.29,147.27,6.7882]
[1751753156841,13.13279224,147.28,147.27,6.7882]
[1751753157042,13.13279224,147.28,147.26,6.7888]
[1751753157242,4.66239858,147.27,147.26,6.7888]
[1751753158245,13.14320279,147.27,147.26,6.7888]
[1751753160240,19.93180279,147.27,147.24,46.36]
[1751753160543,4.66239858,147.26,147.24,46.36]
[1751753160743,6.7886,147.27,147.24,46.36]
[1751753160933,4.67448088,147.26,147.24,46.36]
[1751753161138,6.7886,147.27,147.24,53.1497]
[1751753161436,4.67431829,147.26,147.24,53.1497]
[1751753161634,6.7886,147.27,147.24,53.1497]
[1751753161840,4.67448663,147.26,147.24,53.1497]
[1751753162038,2.3907,147.28,147.24,46.36]
[1751753162341,13.1645,147.27,147.24,46.36]
[1751753162540,4.67420281,147.26,147.25,6.7895]
[1751753167750,4.67420281,147.26,147.25,9.14880812]
[1751753168952,4.68566322,147.26,147.25,9.14880812]
[1751753169254,13.17866488,147.26,147.24,46.36]
[1751753169452,4.68566322,147.25,147.24,46.36]
[1751753170049,4.68644515,147.25,147.24,46.36]
[1751753170451,4.68644515,147.25,147.24,53.1499]
[1751753170851,4.68644515,147.25,147.24,55.50920812]
[1751753171052,6.7887,147.27,147.24,55.50920812]
[1751753171256,4.68642062,147.26,147.24,55.50920812]
[1751753171554,6.7887,147.27,147.24,55.50920812]
[1751753171756,4.686559,147.26,147.24,55.50920812]
[1751753172053,6.7887,147.27,147.24,55.50920812]
[1751753172252,4.686559,147.26,147.24,55.50920812]
[1751753172554,6.7887,147.27,147.24,55.50920812]
[1751753172754,4.68673196,147.26,147.24,55.50920812]
[1751753173057,6.7887,147.27,147.24,55.50920812]
[1751753173254,4.68673305,147.26,147.24,55.50920812]
[1751753173455,6.7887,147.27,147.24,55.50920812]
[1751753173655,4.68691076,147.26,147.25,6.7895]
[1751753179066,4.68691076,147.26,147.24,46.36]
[1751753179262,4.68691076,147.25,147.24,46.36]
[1751753180666,4.68691076,147.25,147.24,53.1499]
[1751753181564,11.53830812,147.28,147.25,6.7894]
[1751753181764,15.61705011,147.27,147.25,6.7894]
[1751753181966,13.16725789,147.26,147.25,6.7894]
[1751753183866,13.16725789,147.26,147.25,9.14870812]
[1751753184966,4.67737645,147.26,147.25,9.14870812]
[1751753186964,4.67737645,147.26,147.25,6.7894]
[1751753187268,7.13516755,147.26,147.24,46.36]
[1751753187568,7.13566323,147.25,147.24,46.36]
[1751753190374,15.64215315,147.25,147.24,46.36]
[1751753192675,15.64215315,147.25,147.24,53.1499]
[1751753192872,15.64215315,147.25,147.24,6.7899]
[1751753193672,13.92516323,147.25,147.23,6.7902]
[1751753193869,4.67737645,147.24,147.23,6.7902]
[1751753195482,13.17737097,147.24,147.23,6.7902]
[1751753195877,17.99592602,147.24,147.22,6.7906]
[1751753196092,4.67737645,147.23,147.22,6.7906]
[1751753198182,4.67737645,147.23,147.21,53.1112]
[1751753198382,9.14930812,147.24,147.21,53.1112]
[1751753198581,15.52818617,147.23,147.21,46.32]
[1751753198777,17.98744618,147.22,147.21,46.32]
[1751753200378,15.52818617,147.22,147.21,46.32]
[1751753201886,13.16887805,147.22,147.21,46.32]
[1751753205286,13.10921106,147.22,147.21,46.32]
[1751753206187,4.61892991,147.22,147.21,46.32]
[1751753206389,11.40972991,147.22,147.21,46.32]
[1751753206885,4.61892991,147.22,147.21,46.32]
[1751753209189,4.61892991,147.22,147.21,53.1113]
[1751753211289,9.14950812,147.24,147.21,53.1113]
[1751753211483,15.68313239,147.23,147.21,53.1113]
[1751753211684,9.14950812,147.24,147.21,53.1113]
[1751753211878,15.70793077,147.23,147.21,53.1113]
[1751753212183,9.14950812,147.24,147.21,53.1113]
[1751753212384,15.7077075,147.23,147.22,6.7908]
[1751753213994,15.70746778,147.23,147.22,6.7908]
[1751753215297,13.26149631,147.23,147.22,6.7908]
[1751753216293,15.7099854,147.23,147.22,6.7908]
[1751753218200,13.26149631,147.23,147.22,9.15010812]
[1751753218592,4.62680752,147.23,147.22,204.55010812]
[1751753221599,9.14810812,147.27,147.24,6.7898]
[1751753221907,20.4479331,147.26,147.24,6.7898]
[1751753222100,11.8139052,147.25,147.24,6.7898]
[1751753223006,7.07988625,147.25,147.24,6.7898]
[1751753225007,7.07988625,147.25,147.23,9.14950812]
[1751753225211,4.63134849,147.24,147.22,195.4]
[1751753225502,2.35930812,147.26,147.22,195.4]
[1751753225702,15.73728171,147.25,147.22,195.4]
[1751753226009,2.35930812,147.26,147.21,48.67930812]
[1751753226010,2.35930812,147.23,147.21,46.32]
[1751753226213,4.63382296,147.22,147.21,46.32]
[1751753226711,15.64966417,147.22,147.21,46.32]
[1751753227512,22.44046417,147.22,147.21,46.32]
[1751753227711,20.08115605,147.22,147.21,46.32]
[1751753227912,13.29035605,147.22,147.21,46.32]
[1751753228112,13.31340535,147.22,147.21,46.32]
[1751753229514,8.65653309,147.22,147.21,46.32]
[1751753239624,8.65653309,147.22,147.21,53.1113]
[1751753241329,8.65653309,147.22,147.21,46.32]
[1751753243324,17.80664121,147.22,147.21,46.32]
[1751753243527,11.01584121,147.22,147.17,48.61930812]
[1751753243726,11.01584121,147.21,147.18,195.38]
[1751753243928,2.35930812,147.2,147.18,195.38]
[1751753244129,2.35930812,147.21,147.18,195.38]
[1751753244323,4.66124497,147.2,147.18,195.38]
[1751753244520,2.35930812,147.21,147.18,195.38]
[1751753244725,6.7915,147.21,147.18,195.38]
[1751753245428,6.7915,147.21,147.18,202.1723]
[1751753245926,6.7915,147.21,147.19,6.7922]
[1751753246129,6.7911,147.22,147.18,197.73930812]
[1751753246326,13.28276948,147.21,147.19,2.35930812]
[1751753246527,6.7911,147.22,147.19,2.35930812]
[1751753246827,13.28260297,147.21,147.2,9.15100812]
[1751753249035,13.28260297,147.21,147.2,6.7917]
[1751753249232,13.27132532,147.21,147.2,6.7917]
[1751753252137,8.63944287,147.21,147.2,6.7917]
[1751753252438,13.27112242,147.21,147.19,9.15150812]
[1751753252638,6.7909,147.22,147.19,9.15150812]
[1751753252844,13.26156345,147.21,147.19,9.15150812]
[1751753253141,9.15020812,147.22,147.19,6.7922]
[1751753253343,20.05267878,147.21,147.19,6.7922]
[1751753253539,6.7913,147.21,147.19,6.7922]
[1751753253740,6.7922,147.19,147.18,195.38]
[1751753253933,6.7922,147.19,147.17,48.61930812]
[1751753253934,15.42307699,147.19,147.17,46.26]
[1751753254145,8.63105019,147.18,147.17,46.26]
[1751753254640,17.78305831,147.18,147.17,46.26]
[1751753255142,17.78305831,147.18,147.15,202.1539]
[1751753255343,9.15200812,147.18,147.15,202.1539]
[1751753255543,9.15200812,147.18,147.15,195.36]
[1751753255743,6.7927,147.18,147.15,195.36]
[1751753255944,6.7927,147.18,147.13,636.53158671]
[1751753256145,6.7927,147.18,147.14,195.38]
[1751753256747,6.7927,147.18,147.15,6.794]
[1751753256943,6.7932,147.17,147.15,195.38]
[1751753257347,6.7932,147.17,147.14,6.7943]
[1751753257548,6.7932,147.17,147.14,202.1743]
[1751753258942,6.7932,147.17,147.14,6.7943]
[1751753259346,6.7936,147.16,147.14,202.1743]
[1751753260252,6.7936,147.16,147.13,835.0148]
[1751753260449,6.7936,147.16,147.13,828.22]
[1751753260749,6.7936,147.16,147.13,46.28]
[1751753260949,6.7936,147.16,147.13,241.66]
[1751753261349,6.7933,147.17,147.14,6.7945]
[1751753261948,6.7933,147.17,147.14,6.7944]
[1751753262151,9.2043,147.18,147.13,241.66]
[1751753262352,8.73196368,147.17,147.13,241.66]
[1751753262553,9.2043,147.18,147.13,241.66]
[1751753262755,8.73002381,147.17,147.14,6.7942]
[1751753262955,6.7932,147.17,147.14,202.1942]
[1751753277771,9.156451,147.17,147.14,202.1942]
[1751753278472,4.96125536,147.16,147.14,202.1942]
[1751753278772,9.156451,147.17,147.14,202.1942]
[1751753278973,4.98653108,147.16,147.15,6.794]
[1751753280973,14.33302457,147.22,147.15,2.363251]
[1751753281175,23.19039467,147.21,147.16,2.363251]
[1751753281373,25.3093693,147.2,147.17,202.1929]
[1751753281573,13.72008874,147.19,147.17,202.1929]
[1751753281873,13.72008874,147.18,147.17,202.1929]
[1751753282174,13.72008874,147.18,147.16,6.7934]
[1751753282374,4.98682735,147.17,147.16,195.4]
[1751753286380,13.72526229,147.17,147.16,195.4]
[1751753288283,22.88171329,147.17,147.16,195.4]
[1751753289180,22.88171329,147.17,147.14,6.7943]
[1751753289382,7.35007835,147.16,147.14,6.7943]
[1751753289581,4.98682735,147.15,147.14,6.7943]
[1751753291979,4.98682735,147.15,147.14,9.15720502]
[1751753292379,4.98682735,147.15,147.14,6.7943]
[1751753292888,4.98682735,147.15,147.14,9.15720502]
[1751753296786,4.98682735,147.15,147.14,6.7943]
[1751753298676,13.7715901,147.15,147.14,6.7943]
[1751753301290,13.7715901,147.15,147.13,248.4548]
[1751753301489,13.7715901,147.14,147.13,248.4548]
[1751753304887,13.7715901,147.14,147.13,250.81771622]
[1751753305495,13.77197465,147.14,147.13,250.81771622]
[1751753308393,4.98682735,147.14,147.13,250.81771622]
[1751753310294,9.15561622,147.18,147.13,250.81771622]
[1751753310295,9.15561622,147.18,147.15,6.7937]
[1751753310490,20.97004066,147.17,147.16,195.36]
[1751753310996,20.97007493,147.17,147.16,195.36]
[1751753311196,20.9700686,147.17,147.16,195.36]
[1751753311592,20.9700686,147.17,147.16,202.1536]
[1751753314099,20.9700686,147.17,147.16,195.36]
[1751753316604,20.9700686,147.17,147.16,202.1536]
[1751753318905,20.9700686,147.17,147.16,195.36]
[1751753321206,30.12618482,147.17,147.16,195.36]
[1751753321404,23.33298482,147.17,147.14,6.7945]
[1751753321605,18.63737622,147.16,147.14,6.7945]
[1751753321803,13.7996341,147.15,147.14,6.7945]
[1751753326104,13.7996341,147.15,147.13,46.28]
[1751753326305,16.29643716,147.14,147.13,248.4348]
[1751753328412,16.29643716,147.14,147.13,53.0748]
[1751753328607,16.29643716,147.14,147.13,248.4348]
[1751753329313,13.81954824,147.14,147.13,248.4348]
[1751753331918,13.81954824,147.14,147.13,250.79771622]
[1751753332412,9.54016699,147.2,147.13,244.00291622]
[1751753332715,9.54177291,147.19,147.15,2.36291622]
[1751753333009,7.17885669,147.18,147.16,195.36]
[1751753333217,2.47339469,147.17,147.16,195.36]
[1751753334317,2.47338166,147.17,147.16,202.1533]
[1751753335618,2.47338166,147.17,147.16,195.36]
[1751753339422,2.47338166,147.17,147.16,202.1536]
[1751753340830,2.47338166,147.17,147.16,204.51651622]
[1751753341329,11.89673987,147.2,147.17,6.793]
[1751753341529,18.68873987,147.2,147.17,6.793]
[1751753344329,8.74605181,147.19,147.17,6.793]
[1751753344626,8.74605181,147.18,147.17,6.793]
[1751753346227,8.74568655,147.18,147.17,6.793]
[1751753347030,16.19355313,147.18,147.17,6.793]
[1751753348030,16.19355313,147.18,147.16,204.51631622]
[1751753348228,13.71915275,147.17,147.16,204.51631622]
[1751753350728,8.74568655,147.17,147.16,204.51631622]
[1751753351032,13.74270264,147.17,147.16,204.51631622]
[1751753358232,4.99701609,147.17,147.16,204.51631622]
[1751753368641,6.792,147.2,147.17,6.7928]
[1751753368847,13.74607635,147.19,147.17,6.7928]
[1751753369045,5.00323456,147.18,147.17,6.7928]
[1751753369540,5.00323456,147.18,147.17,9.15571622]
[1751753369745,2.2486,147.21,147.18,6.7923]
[1751753369946,8.74173643,147.2,147.18,55.39521622]
[1751753370244,2.2486,147.21,147.18,55.39521622]
[1751753370444,8.74055888,147.2,147.18,55.39521622]
[1751753370744,9.0402,147.21,147.18,55.39521622]
[1751753370944,8.74055888,147.2,147.18,55.39521622]
[1751753371245,9.0402,147.21,147.18,55.39521622]
[1751753371448,8.73997966,147.2,147.18,55.39521622]
[1751753371743,9.0402,147.21,147.18,55.39521622]
[1751753371944,8.73980592,147.2,147.18,55.39521622]
[1751753372147,2.2486,147.21,147.19,6.7921]
[1751753372446,2.2486,147.21,147.19,9.15501622]
[1751753372646,11.89518652,147.24,147.2,2.36291622]
[1751753372840,22.69569157,147.23,147.2,9.15441622]
[1751753373043,11.18883996,147.22,147.2,9.15441622]
[1751753373244,8.74930865,147.21,147.2,9.15441622]
[1751753380058,8.74930865,147.21,147.2,6.7915]
[1751753380256,8.74930865,147.21,147.2,9.15441622]
[1751753381656,13.72618149,147.21,147.2,9.15441622]
[1751753387263,8.74930865,147.21,147.2,9.15441622]
[1751753387462,13.72587745,147.21,147.2,9.15441622]
[1751753388060,13.72587745,147.21,147.2,6.7915]
[1751753388262,13.72587745,147.21,147.19,9.15491622]
[1751753388464,4.9765688,147.2,147.19,9.15491622]
[1751753389769,4.9765688,147.2,147.19,6.792]
[1751753389966,18.54202448,147.2,147.18,46.24]
[1751753390167,16.10452276,147.19,147.18,46.24]
[1751753390363,18.54271067,147.19,147.18,38.9]
[1751753390869,6.793,147.18,147.15,9.15681622]
[1751753391069,4.9765688,147.17,147.15,6.7939]
[1751753391270,4.9765688,147.16,147.15,6.7939]
[1751753394368,4.9765688,147.16,147.15,9.15681622]
[1751753394575,4.9765688,147.16,147.15,6.7939]
[1751753396879,4.9765688,147.16,147.15,9.15681622]
[1751753403279,4.9765688,147.16,147.15,204.39681622]
[1751753407984,4.9765688,147.16,147.15,202.0339]
[1751753410383,2.36291622,147.18,147.16,6.7936]
[1751753410583,13.63920043,147.17,147.16,6.7936]
[1751753410880,13.63920043,147.17,147.16,202.0336]
[1751753411081,13.63948596,147.17,147.16,202.0336]
[1751753412880,13.63948596,147.17,147.16,6.7936]
[1751753413087,13.63948596,147.17,147.16,202.0336]
[1751753413286,4.92618907,147.17,147.16,202.0336]
[1751753413887,13.6289464,147.17,147.16,202.0336]
[1751753415287,4.92618907,147.17,147.16,202.0336]
[1751753415488,13.62834237,147.17,147.16,202.0336]
[1751753416988,8.7021533,147.17,147.16,202.0336]
[1751753417190,13.61599379,147.17,147.16,202.0336]
[1751753419593,4.91384049,147.17,147.16,202.0336]
[1751753420196,7.27675671,147.17,147.14,46.22]
[1751753420396,4.91384049,147.16,147.15,195.22]
[1751753420892,7.27675671,147.16,147.14,46.22]
[1751753421096,4.91478148,147.15,147.14,241.44]
[1751753421795,4.91478148,147.15,147.14,46.22]
[1751753422295,4.91478148,147.15,147.14,53.0142]
[1751753422899,4.9154988,147.15,147.14,53.0142]
[1751753423098,4.9154988,147.15,147.14,248.2342]
[1751753425699,4.91662087,147.15,147.14,248.2342]
[1751753433405,13.53157131,147.15,147.14,248.2342]
[1751753434605,13.54407492,147.15,147.14,248.2342]
[1751753438705,13.54407492,147.15,147.14,53.0142]
[1751753438907,13.55105219,147.15,147.14,248.2342]
[1751753440205,13.48842084,147.15,147.14,248.2342]
[1751753441008,13.48842134,147.15,147.14,248.2342]
[1751753448908,8.62192771,147.15,147.14,248.2342]
[1751753449114,13.48864976,147.15,147.14,248.2342]
[1751753450513,4.86672205,147.15,147.14,248.2342]
[1751753450812,13.48943168,147.15,147.14,248.2342]
[1751753451313,13.48943168,147.15,147.14,202.0142]
[1751753451512,8.62270963,147.15,147.14,202.0142]
[1751753451712,13.48975962,147.15,147.14,202.0142]
[1751753453116,15.92031424,147.15,147.14,202.0142]
[1751753455316,21.13584388,147.15,147.14,202.0142]
[1751753461323,21.13759212,147.15,147.14,202.0142]
[1751753463926,21.13759212,147.15,147.14,6.7942]
[1751753467226,21.13997569,147.15,147.14,6.7942]
[1751753473142,15.92444605,147.15,147.14,6.7942]
[1751753473442,21.17982409,147.15,147.14,6.7942]
[1751753476243,18.7468859,147.15,147.14,6.7942]
[1751753476443,21.19821847,147.15,147.14,6.7942]
[1751753476745,11.05563449,147.15,147.14,6.7942]
[1751753477042,21.1977942,147.15,147.14,6.7942]
[1751753478243,21.37952185,147.15,147.14,6.7942]
[1751753478845,21.37952185,147.15,147.14,9.15714443]
[1751753479145,18.94659699,147.15,147.14,9.15655813]
[1751753479446,18.94659699,147.15,147.14,9.1566321]
[1751753488454,18.94659699,147.15,147.12,2.3624321]
[1751753488652,2.3624321,147.13,147.11,46.2]
[1751753488949,23.67269958,147.12,147.08,197.4624321]
[1751753489150,18.87625817,147.11,147.08,197.4624321]
[1751753489351,4.88856758,147.1,147.08,197.4624321]
[1751753489547,9.1579321,147.12,147.09,6.7966]
[1751753489748,13.9397372,147.11,147.09,6.7966]
[1751753489943,4.89575676,147.1,147.09,6.7966]
[1751753490145,4.89575676,147.1,147.08,9.1595321]
[1751753490346,9.1579321,147.12,147.08,204.2795321]
[1751753490546,13.93491649,147.11,147.08,204.2795321]
[1751753490750,4.89406473,147.1,147.08,204.2795321]
[1751753490950,9.1584321,147.11,147.07,243.6424321]
[1751753491152,10.07156808,147.1,147.07,243.6424321]
[1751753491353,4.89414565,147.09,147.07,46.16]
[1751753491553,4.89414565,147.08,147.07,46.16]
[1751753491754,10.0179702,147.08,147.07,46.16]
[1751753491951,19.02369896,147.08,147.07,46.16]
[1751753492357,13.89987441,147.08,147.07,46.16]
[1751753492556,13.89987441,147.08,147.07,52.9578]
[1751753494255,13.84487207,147.08,147.07,52.9578]
[1751753494649,4.83914331,147.08,147.07,52.9578]
[1751753494847,4.83914331,147.08,147.07,248.0978]
[1751753496261,2.3624321,147.1,147.07,248.0978]
[1751753496558,13.76553068,147.09,147.07,248.0978]
[1751753496754,2.3624321,147.1,147.07,248.0978]
[1751753496954,13.72221352,147.09,147.07,248.0978]
[1751753497159,2.3624321,147.1,147.07,248.0978]
[1751753497160,2.3624321,147.1,147.07,241.3]
[1751753497358,16.08127582,147.09,147.07,241.3]
[1751753497557,2.3624321,147.09,147.07,241.3]
[1751753498557,2.3624321,147.09,147.07,248.0975]
[1751753500462,9.1591321,147.1,147.07,248.0975]
[1751753500661,4.80879839,147.09,147.07,248.0975]
[1751753500861,9.1591321,147.1,147.07,248.0975]
[1751753501053,4.80879847,147.09,147.07,248.0975]
[1751753501251,9.1591321,147.1,147.07,248.0975]
[1751753502265,2.3624321,147.1,147.08,6.7973]
[1751753502765,9.1588321,147.1,147.08,6.7973]
[1751753503065,9.1588321,147.1,147.07,248.0976]
[1751753514863,16.62921655,147.14,147.03,46.16]
[1751753515070,2.3624321,147.09,147.04,197.5024321]
[1751753515273,4.81741078,147.08,147.05,2.3624321]
[1751753515466,6.7969,147.09,147.06,204.3003321]
[1751753515667,4.81744133,147.08,147.06,204.3003321]
[1751753515967,2.3624321,147.12,147.08,6.7973]
[1751753516167,13.72973305,147.11,147.09,195.14]
[1751753516362,4.81720918,147.1,147.09,195.14]
[1751753516563,9.5078321,147.14,147.09,197.5024321]
[1751753516771,13.72769799,147.13,147.1,2.3624321]
[1751753516961,9.5078321,147.14,147.1,2.3624321]
[1751753517165,13.72759685,147.13,147.1,2.3624321]
[1751753517368,6.7952,147.13,147.1,9.1586321]
[1751753519277,4.81791388,147.12,147.1,9.1586321]
[1751753519471,6.7952,147.13,147.1,9.1586321]
[1751753519671,4.81791388,147.12,147.1,9.1586321]
[1751753519872,6.7952,147.13,147.1,9.1586321]
[1751753520176,4.81791388,147.12,147.1,9.1586321]
[1751753520377,6.7952,147.13,147.1,9.1586321]
[1751753520673,4.81814385,147.12,147.11,9.1583321]
[1751753520867,149.38710917,147.17,147.11,2.3624321]
[1751753521068,21.15181949,147.16,147.13,2.3624321]
[1751753521263,25.53939116,147.15,147.13,2.3624321]
[1751753521474,13.73192311,147.14,147.13,2.3624321]
[1751753522472,4.81765875,147.14,147.13,9.1574321]
[1751753522678,137.54086052,147.17,147.13,9.1574321]
[1751753522877,13.7498592,147.16,147.14,2.3624321]
[1751753523073,13.7498592,147.15,147.14,2.3624321]
[1751753523776,4.81743244,147.15,147.14,2.3624321]
[1751753524078,13.75012422,147.15,147.14,2.3624321]
[1751753524972,20.54422422,147.15,147.12,197.4824321]
[1751753525174,6.7941,147.15,147.12,197.4824321]
[1751753525877,6.7941,147.15,147.12,204.2778321]
[1751753526077,11.6358435,147.14,147.12,197.4824321]
[1751753526378,6.7946,147.14,147.12,197.4824321]
[1751753529381,4.87969252,147.13,147.12,204.2779321]
[1751753531183,13.86348016,147.13,147.12,204.2779321]
[1751753531374,6.7943,147.15,147.12,204.2779321]
[1751753531579,18.99076724,147.14,147.12,204.2779321]
[1751753531783,4.87982085,147.13,147.12,204.2779321]
[1751753532084,13.85792018,147.13,147.12,204.2779321]
[1751753533084,13.85792018,147.13,147.12,197.4824321]
[1751753533789,13.85975516,147.13,147.12,195.12]
[1751753540494,13.85975516,147.13,147.12,201.9155]
[1751753544600,13.85975516,147.13,147.12,204.2779321]
[1751753544798,9.51592921,147.18,147.13,6.7947]
[1751753544999,23.70538342,147.17,147.14,195.04]
[1751753545201,21.34295132,147.16,147.14,195.04]
[1751753545499,18.92475298,147.15,147.14,195.04]
[1751753546898,25.71885298,147.15,147.14,195.04]
[1751753548402,28.08128508,147.15,147.14,195.04]
[1751753551007,30.50110698,147.15,147.14,195.04]
[1751753551905,30.52476951,147.15,147.14,195.04]
[1751753552909,28.16233741,147.15,147.14,195.04]
[1751753553111,28.16277797,147.15,147.14,195.04]
[1751753553609,25.74278677,147.15,147.14,195.04]
[1751753555502,28.16384645,147.15,147.14,195.04]
[1751753559014,25.74278677,147.15,147.14,195.04]
[1751753559311,28.17907483,147.15,147.14,195.04]
[1751753559714,28.17928165,147.15,147.14,195.04]
[1751753561213,37.69521086,147.15,147.14,195.04]
[1751753565217,32.82012869,147.15,147.14,195.04]
[1751753565419,37.72295916,147.15,147.14,195.04]
[1751753570915,30.92885916,147.15,147.14,195.04]
[1751753576624,28.50613608,147.15,147.14,195.04]
[1751753577023,30.94532465,147.15,147.14,195.04]
[1751753577325,26.04249418,147.15,147.14,195.04]
[1751753577524,30.95666351,147.15,147.14,195.04]
[1751753577823,30.90660797,147.15,147.14,195.04]
[1751753580325,37.70070797,147.15,147.14,195.04]
[1751753580533,37.70082507,147.15,147.14,195.04]
[1751753586024,6.7947,147.14,147.11,250.27904222]
[1751753586224,21.39079586,147.13,147.11,250.27904222]
[1751753586525,18.95156474,147.12,147.11,250.27904222]
[1751753588322,8.97728479,147.12,147.11,250.27904222]
[1751753588626,18.95434392,147.12,147.11,250.27904222]
[1751753588829,9.97705913,147.12,147.11,250.27933053]
[1751753589026,18.90421085,147.12,147.11,250.27933053]
[1751753594431,13.84272731,147.12,147.11,250.27933053]